fUSD/lending_fUSD_20251223
["ID","MTS","AMOUNT","RATE_DAILY","PERIOD"]
[399585924,1766525046598,-324.14719611,0.00015125,2]
[399585925,1766525049902,500.0,0.00015124,2]
[399585926,1766525049939,500.0,0.00015124,2]
[399585927,1766525049981,500.0,0.00015124,2]
[399585928,1766525050024,320.75393111,0.00015124,2]
[399585929,1766525050091,500.0,0.00015124,2]
[399585930,1766525050131,500.0,0.00015124,2]
[399585931,1766525050178,500.0,0.00015124,2]
[399585932,1766525050218,500.0,0.00015124,2]
[399585933,1766525050280,500.0,0.00015124,2]
[399585934,1766525050315,500.0,0.00015124,2]
[399585935,1766525050357,500.0,0.00015124,2]
[399585936,1766525050784,500.0,0.00015124,2]
[399585937,1766525050821,406.42548015,0.00015124,2]
[399585938,1766525050849,93.57451985,0.00015124,2]
[399585939,1766525050885,500.0,0.00015124,2]
[399585940,1766525050924,500.0,0.00015124,2]
[399585941,1766525050958,500.0,0.00015124,2]
[399585942,1766525051017,500.0,0.00015124,2]
[399585943,1766525051058,500.0,0.00015124,2]
[399585944,1766525051323,-237.73537449,0.00015125,2]
[399585945,1766525053957,-226.32515273,0.00015125,2]
[399585946,1766525055671,-202.62648438,0.00015125,2]
[399585947,1766525057910,-437.73537449,0.00015125,2]
[399585948,1766525060692,-163.96901314,0.00015125,2]
[399585949,1766525062694,-229.08130099,0.00015125,2]
[399585950,1766525064805,-160.16794915,0.00015125,2]
[399585951,1766525065424,500.0,0.00015124,2]
[399585952,1766525065462,500.0,0.00015124,2]
[399585953,1766525065502,500.0,0.00015124,2]
[399585954,1766525066616,-255.65451914,0.00015125,2]
[399585955,1766525068884,-363.7208723,0.00015125,2]
[399585956,1766525071603,-320.43004117,0.00015125,2]
[399585957,1766525075238,-174.70379099,0.00015125,2]
[399585958,1766525077595,-376.78318328,0.00015125,2]
[399585959,1766525077877,500.0,0.00015124,2]
[399585960,1766525078152,500.0,0.00015124,2]
[399585961,1766525078636,-328.87038835,0.00015125,2]
[399585962,1766525081144,-240.55380638,0.00015125,2]
[399585963,1766525084384,-474.95984158,0.00015125,2]
[399585964,1766525085820,-239.92416635,0.00015125,2]
[399585965,1766525089019,-181.49564701,0.00015125,2]
[399585966,1766525090583,-153.54788473,0.00015125,2]
[399585967,1766525092432,-159.50087562,0.00015125,2]
[399585968,1766525095559,-255.23554207,0.00015125,2]
[399585969,1766525098182,-201.74530311,0.00015125,2]
[399585970,1766525100847,-343.48435959,0.00015125,2]
[399585971,1766525101110,300.0,0.00015124,2]
[399585972,1766525101147,300.0,0.00015124,2]
[399585973,1766525101180,1200.0,0.00015124,2]
[399585974,1766525102843,-345.51760709,0.00015125,2]
[399585975,1766525104394,-200.94169848,0.00015125,2]
[399585976,1766525106481,-162.31733358,0.00015125,2]
[399585977,1766525108207,500.0,0.00015124,2]
[399585978,1766525108253,501.22275022,0.00015124,2]
[399585979,1766525109412,-182.8505077,0.00015125,2]
[399585980,1766525112189,1583.549662,0.000226,120]
[399585981,1766525112570,-379.39925078,0.00015125,2]
[399585982,1766525114999,-387.92797861,0.00015125,2]
[399585983,1766525117051,-258.0129793,0.00015125,2]
[399585984,1766525119259,238.35336158,9e-05,2]
[399585985,1766525119571,-188.27973739,0.00015125,2]
[399585986,1766525122112,-196.67112505,0.00015125,2]
[399585987,1766525126055,-224.35526411,0.00015125,2]
[399585988,1766525127444,-198.61702734,0.00015125,2]
[399585989,1766525129441,-403.50505732,0.00015125,2]
[399585990,1766525136454,-267.35514473,0.00015125,2]
[399585991,1766525136799,500.0,0.00015124,2]
[399585992,1766525136850,351.76437129,0.00015124,2]
[399585993,1766525138885,-302.0,0.00015125,2]
[399585994,1766525143276,-302.0,0.00015125,2]
[399585995,1766525145871,-302.0,0.00015125,2]
[399585996,1766525168650,500.0,0.00015124,2]
[399585997,1766525168703,351.76437129,0.00015124,2]
[399585998,1766525169880,-302.0,0.00015125,2]
[399585999,1766525173074,-432.72570392,0.00015125,2]
[399586000,1766525176219,-289.60137542,0.00015125,2]
[399586001,1766525176273,152.51282018,0.00015025,2]
[399586002,1766525179847,-196.87185139,0.00015125,2]
[399586003,1766525181299,-217.24974914,0.00015125,2]
[399586004,1766525182817,-259.69356779,0.00015125,2]
[399586006,1766525184277,-193.23795303,0.00015125,2]
[399586007,1766525187513,-404.25620648,0.00015125,2]
[399586008,1766525190009,-338.14115377,0.00015125,2]
[399586009,1766525192017,-374.65291848,0.00015125,2]
[399586010,1766525194785,-333.54423251,0.00015125,2]
[399586011,1766525197971,-300.0,0.00015125,2]
[399586012,1766525198128,-265.81207983,0.00015125,2]
[399586014,1766525199601,-392.75244996,0.00015125,2]
[399586015,1766525199946,500.0,0.00015124,2]
[399586016,1766525199986,351.76437129,0.00015124,2]
[399586017,1766525202047,-237.00163666,0.00015125,2]
[399586020,1766525207001,-182.90159858,0.00015125,2]
[399586021,1766525210868,-250.54999566,0.00015125,2]
[399586022,1766525212783,-209.08747148,0.00015125,2]
[399586023,1766525214260,-233.28425376,0.00015125,2]
[399586024,1766525217274,-210.6127794,0.00015125,2]
[399586025,1766525220973,-151.40513183,0.00015125,2]
[399586026,1766525222229,300.0,0.00015124,2]
[399586028,1766525224358,-178.22093419,0.00015125,2]
[399586029,1766525227560,-304.88105907,0.00015125,2]
[399586030,1766525230547,-213.27228091,0.00015125,2]
[399586032,1766525231858,205.0,9.8e-05,2]
[399586033,1766525233573,-601.12853659,0.00015125,2]
[399586034,1766525235396,500.0,0.00015124,2]
[399586035,1766525235452,351.76437129,0.00015124,2]
[399586036,1766525236838,-203.9016105,0.00015125,2]
[399586037,1766525238642,-269.84131279,0.00015125,2]
[399586038,1766525240729,-165.85938657,0.00015125,2]
[399586039,1766525242750,-198.47416993,0.00015125,2]
[399586040,1766525244499,-212.94338836,0.00015125,2]
[399586041,1766525247704,-210.39862458,0.00015125,2]
[399586042,1766525249074,-225.45878475,0.00015125,2]
[399586043,1766525250526,-193.0,0.00015125,2]
[399586044,1766525253715,-215.08945702,0.00015125,2]
[399586045,1766525254727,-312.35765271,0.00015125,2]
[399586046,1766525256214,-383.34445205,0.00015125,2]
[399586047,1766525258613,-168.80583206,0.00015125,2]
[399586048,1766525262786,-184.80488258,0.00015125,2]
[399586049,1766525265464,-201.49824492,0.00015125,2]
[399586050,1766525267308,500.0,0.00015124,2]
[399586051,1766525267361,351.76437129,0.00015124,2]
[399586052,1766525269563,-202.384265,0.00015125,2]
[399586053,1766525271503,-362.74421901,0.00015125,2]
[399586054,1766525274057,-201.17741891,0.00015125,2]
[399586055,1766525277635,-186.36914839,0.00015125,2]
[399586056,1766525279121,-223.72268754,0.00015125,2]
[399586057,1766525281093,-279.48633976,0.00015125,2]
[399586058,1766525282552,-215.97542752,0.00015125,2]
[399586059,1766525285131,-232.351131,0.00015125,2]
[399586060,1766525286562,-290.00544982,0.00015125,2]
[399586061,1766525288407,-209.08747148,0.00015125,2]
[399586062,1766525288883,1200.0,0.00015124,2]
[399586063,1766525289926,4735.43969466,0.00015025,2]
[399586064,1766525289975,10000.01,0.00015025,2]
[399586065,1766525290012,10000.01,0.00015025,2]
[399586066,1766525290049,10000.01,0.00015025,2]
[399586067,1766525290091,10000.01,0.00015025,2]
[399586068,1766525290129,10000.01,0.00015025,2]
[399586069,1766525290607,10000.01,0.00015025,2]
[399586070,1766525290655,10000.01,0.00015025,2]
[399586071,1766525290692,10000.01,0.00015025,2]
[399586072,1766525290723,10000.01,0.00015025,2]
[399586073,1766525290754,10000.01,0.00015025,2]
[399586074,1766525290783,10000.01,0.00015025,2]
[399586075,1766525290814,10000.01,0.00015025,2]
[399586076,1766525290842,10000.01,0.00015025,2]
[399586077,1766525290872,10000.01,0.00015025,2]
[399586078,1766525290985,-297.87719516,0.00015025,2]
[399586080,1766525298410,1925.79874589,0.0001,2]
[399586082,1766525305407,-339.02207309,0.00015025,2]
[399586083,1766525309330,-329.15134946,0.00015025,2]
[399586084,1766525309364,2727.29265838,0.0001,2]
[399586085,1766525311647,500.0,0.00015024,2]
[399586086,1766525311718,500.0,0.00015024,2]
[399586087,1766525311772,500.0,0.00015024,2]
[399586088,1766525311864,530.73872039,0.00015024,2]
[399586089,1766525311912,-239.84167299,0.00015025,2]
[399586090,1766525313315,-245.4928499,0.00015025,2]
[399586092,1766525316737,-246.45375404,0.00015025,2]
[399586093,1766525319392,3316.17987534,0.0001,2]
[399586094,1766525319418,7516.81253427,0.0001,2]
[399586095,1766525320045,183.850552,0.00014949,2]
[399586098,1766525327367,-492.43574919,0.00015025,2]
[399586099,1766525328139,-5000000.0,0.00042707,7]
[399586100,1766525330724,500.0,0.00015024,2]
[399586101,1766525330763,500.0,0.00015024,2]
[399586102,1766525330799,351.76437129,0.00015024,2]
[399586103,1766525330835,-234.69882905,0.00015025,2]
[399586104,1766525332889,-174.67189407,0.00015025,2]
[399586105,1766525334390,-206.21057752,0.00015025,2]
[399586106,1766525335237,500.0,0.00015024,2]
[399586107,1766525335271,447.58254244,0.00015024,2]
[399586108,1766525335300,52.41745756,0.00015024,2]
[399586109,1766525336968,-228.37510685,0.00015025,2]
[399586111,1766525340147,500.0,0.00015024,2]
[399586112,1766525341839,300.0,0.00015024,2]
[399586113,1766525341878,-300.0,0.00015025,2]
[399586114,1766525342945,-300.0,0.00015025,2]
[399586115,1766525345490,-159.40377013,0.00015025,2]
[399586116,1766525347575,9147.59254244,7.945e-05,2]
[399586117,1766525347599,7376.41733956,7.945e-05,2]
[399586118,1766525347762,500.0,0.00015024,2]
[399586119,1766525347799,207.00713857,0.00015024,2]
[399586120,1766525347859,500.0,0.00015024,2]
[399586121,1766525347893,-254.21322987,0.00015025,2]
[399586122,1766525347933,500.0,0.00015024,2]
[399586123,1766525351403,-427.89241243,0.00015025,2]
[399586124,1766525353828,-206.61309058,0.00015025,2]
[399586125,1766525356745,-153.42718897,0.00015025,2]
[399586126,1766525359994,-253.351569,0.00015025,2]
[399586127,1766525361861,500.0,0.00015024,2]
[399586128,1766525361895,289.66256666,0.00015024,2]
[399586129,1766525361929,126.92295521,0.00015024,2]
[399586130,1766525361953,123.15713878,0.00015024,2]
[399586131,1766525362145,500.0,0.00015024,2]
[399586132,1766525362443,181.50821732,0.00015024,2]
[399586133,1766525362590,500.0,0.00015024,2]
[399586134,1766525362915,500.0,0.00015024,2]
[399586135,1766525363729,-336.04237239,0.00015025,2]
[399586136,1766525363780,500.0,0.00015024,2]
[399586137,1766525363841,500.0,0.00015024,2]
[399586138,1766525363905,500.0,0.00015024,2]
[399586139,1766525364461,500.0,0.00015024,2]
[399586140,1766525364524,500.0,0.00015024,2]
[399586141,1766525364823,500.0,0.00015024,2]
[399586142,1766525365132,452.60297347,0.00015024,2]
[399586143,1766525365699,-256.08147755,0.00015025,2]
[399586144,1766525368987,-212.78530851,0.00015025,2]
[399586145,1766525373012,-287.21469149,0.00015025,2]
[399586146,1766525374603,-383.8782429,0.00015025,2]
[399586147,1766525376494,-198.67383272,0.00015025,2]
[399586148,1766525377712,500.0,0.00015024,2]
[399586149,1766525377759,500.0,0.00015024,2]
[399586150,1766525377813,350.0,0.00015024,2]
[399586151,1766525382091,-7000000.0,0.00042707,7]
[399586152,1766525382136,-385.58142651,0.00015025,2]
[399586153,1766525384126,-250.0,0.00015025,2]
[399586154,1766525389359,-7000000.0,0.00042707,7]
[399586155,1766525389438,500.0,0.00015024,2]
[399586156,1766525389496,500.0,0.00015024,2]
[399586157,1766525389538,500.0,0.00015024,2]
[399586158,1766525389580,500.0,0.00015024,2]
[399586159,1766525389617,500.0,0.00015024,2]
[399586160,1766525389655,500.0,0.00015024,2]
[399586161,1766525389723,245.35454861,0.00015024,2]
[399586162,1766525399413,-7000000.0,0.00042707,7]
[399586163,1766525401171,147.38712182,0.00015024,2]
[399586164,1766525401197,152.61287818,0.00015024,2]
[399586165,1766525401232,1200.0,0.00015024,2]
[399586166,1766525402222,300.0,0.00015024,2]
[399586167,1766525403126,300.0,0.00015024,2]
[399586168,1766525405282,500.0,0.00015024,2]
[399586169,1766525405336,500.0,0.00015024,2]
[399586170,1766525405377,292.99377933,0.00015024,2]
[399586171,1766525416811,-10000.0,0.00042708,10]
[399586172,1766525416842,-1620.13436958,0.00042708,10]
[399586173,1766525416872,-729.87251119,0.00042708,10]
[399586174,1766525416902,-1000.03026644,0.00042708,15]
[399586175,1766525416931,-1018.47785307,0.00042708,20]
[399586176,1766525416961,-300.0,0.00042708,15]
[399586177,1766525416991,-2399.97445408,0.00042708,14]
[399586178,1766525417021,-1297.06244023,0.00042708,15]
[399586179,1766525417052,-2337.87209949,0.00042708,10]
[399586180,1766525417083,-2364.83968611,0.00042708,10]
[399586181,1766525417115,-1000.0,0.00042708,10]
[399586182,1766525417146,-500.0,0.00042708,10]
[399586183,1766525417177,-1636.57977913,0.00042708,18]
[399586184,1766525417208,-232.98793519,0.00042708,14]
[399586185,1766525417239,-194.951279,0.00042708,10]
[399586186,1766525417271,-231.68004857,0.00042708,15]
[399586187,1766525417305,-275.0,0.00042708,14]
[399586188,1766525417336,-633.56001776,0.00042708,14]
[399586189,1766525417367,-150.0,0.00042708,14]
[399586190,1766525417397,-28864.99918531,0.00042708,20]
[399586191,1766525417428,-500.0,0.00042708,14]
[399586192,1766525417458,-504.04607004,0.00042708,14]
[399586193,1766525417488,-965431.63559529,0.00042708,30]
[399586194,1766525417518,-14822.46105117,0.00042708,30]
[399586195,1766525417551,-7819.9717916,0.00042708,30]
[399586196,1766525417581,-710.2431593,0.00042708,30]
[399586197,1766525417611,-500.0,0.00042708,14]
[399586198,1766525417641,-500.67887517,0.00042708,14]
[399586199,1766525417670,-184.26016695,0.00042708,30]
[399586200,1766525417701,-202.8839223,0.00042708,15]
[399586201,1766525417732,-778.88530863,0.00042708,30]
[399586202,1766525417762,-191.0,0.00042708,30]
[399586203,1766525417792,-155.49038528,0.00042708,30]
[399586204,1766525417821,-2052.36413267,0.00042708,30]
[399586205,1766525417852,-153.25236269,0.00042708,30]
[399586206,1766525417883,-156.35248634,0.00042708,30]
[399586207,1766525417913,-1814.279154,0.00042708,30]
[399586208,1766525417944,-167.20122053,0.00042708,30]
[399586209,1766525417974,-170.01339583,0.00042708,30]
[399586210,1766525418027,-11997.0,0.00042708,30]
[399586211,1766525418083,-23000.0,0.00042708,31]
[399586212,1766525418136,-50000.0,0.00042708,30]
[399586213,1766525418190,-242.73543753,0.00042708,30]
[399586214,1766525418243,-200.0,0.00042708,30]
[399586215,1766525418294,-200.0,0.00042708,30]
[399586216,1766525418344,-200.0,0.00042708,30]
[399586217,1766525418394,-200.0,0.00042708,30]
[399586218,1766525418443,-200.0,0.00042708,30]
[399586219,1766525418491,-200.0,0.00042708,30]
[399586220,1766525418539,-200.0,0.00042708,30]
[399586221,1766525418585,-200.0,0.00042708,30]
[399586222,1766525418634,-200.0,0.00042708,30]
[399586223,1766525418682,-200.0,0.00042708,30]
[399586224,1766525418738,-200.0,0.00042708,30]
[399586225,1766525418786,-200.0,0.00042708,30]
[399586226,1766525418832,-200.0,0.00042708,30]
[399586227,1766525418879,-200.0,0.00042708,30]
[399586228,1766525418925,-200.0,0.00042708,30]
[399586229,1766525418971,-200.0,0.00042708,30]
[399586230,1766525419019,-200.0,0.00042708,30]
[399586231,1766525419068,-200.0,0.00042708,30]
[399586232,1766525419116,-200.0,0.00042708,30]
[399586233,1766525419165,-200.0,0.00042708,30]
[399586234,1766525419214,-200.0,0.00042708,30]
[399586235,1766525419265,-200.0,0.00042708,30]
[399586236,1766525419317,-200.0,0.00042708,30]
[399586237,1766525419368,-1000.0,0.00042708,30]
[399586238,1766525419417,-1000.0,0.00042708,30]
[399586239,1766525419465,-1000.0,0.00042708,30]
[399586240,1766525419515,-1000.0,0.00042708,30]
[399586241,1766525419563,-1000.0,0.00042708,30]
[399586242,1766525419611,-1000.0,0.00042708,30]
[399586243,1766525419661,-1000.0,0.00042708,30]
[399586244,1766525419710,-1000.0,0.00042708,30]
[399586245,1766525419762,-1000.0,0.00042708,30]
[399586246,1766525420090,-12390.76,0.00042708,45]
[399586247,1766525420163,-17014.72947902,0.00042708,30]
[399586248,1766525420214,-522.58423285,0.00042708,30]
[399586249,1766525420264,-502680.9,0.00042708,30]
[399586250,1766525420312,-500.0,0.00042708,30]
[399586251,1766525420370,-500.0,0.00042708,30]
[399586252,1766525420432,-500.0,0.00042708,30]
[399586253,1766525420478,-500.0,0.00042708,30]
[399586254,1766525420523,-510.13862398,0.00042708,120]
[399586255,1766525420568,-205.2,0.00042708,30]
[399586256,1766525420615,-393.427118,0.00042708,120]
[399586257,1766525420662,-1026.04838005,0.00042708,30]
[399586258,1766525420708,-13952.973,0.00042708,120]
[399586259,1766525420754,-500.0,0.00042708,120]
[399586260,1766525420802,-500.0,0.00042708,120]
[399586261,1766525420846,-30028.37631691,0.00042708,120]
[399586262,1766525420890,-204486.17919798,0.00042708,120]
[399586263,1766525420935,-500.0,0.00042708,120]
[399586264,1766525420981,-500.0,0.00042708,120]
[399586265,1766525421028,-331.37050271,0.00042708,120]
[399586266,1766525421076,-536.54477696,0.00042708,120]
[399586267,1766525421125,-500.0,0.00042708,120]
[399586268,1766525421174,-500.0,0.00042708,120]
[399586269,1766525421222,-574.19482996,0.00042708,120]
[399586270,1766525421271,-500.0,0.00042708,120]
[399586271,1766525421319,-500.0,0.00042708,120]
[399586272,1766525421365,-500.0,0.00042708,120]
[399586273,1766525421411,-500.0,0.00042708,120]
[399586274,1766525421456,-500.0,0.00042708,120]
[399586275,1766525421502,-500.0,0.00042708,120]
[399586276,1766525421548,-500.0,0.00042708,120]
[399586277,1766525421593,-500.0,0.00042708,120]
[399586278,1766525421637,-500.0,0.00042708,120]
[399586279,1766525421683,-500.0,0.00042708,120]
[399586280,1766525421734,-500.0,0.00042708,120]
[399586281,1766525421779,-500.0,0.00042708,120]
[399586282,1766525421824,-500.0,0.00042708,120]
[399586283,1766525421868,-500.0,0.00042708,120]
[399586284,1766525421913,-500.0,0.00042708,120]
[399586285,1766525421958,-500.0,0.00042708,120]
[399586286,1766525422004,-500.0,0.00042708,120]
[399586287,1766525422049,-500.0,0.00042708,120]
[399586288,1766525422097,-500.0,0.00042708,120]
[399586289,1766525422144,-305.39990475,0.00042708,120]
[399586290,1766525422193,-551.8137669,0.00042708,120]
[399586291,1766525422242,-500.0,0.00042708,120]
[399586292,1766525422289,-545.45294401,0.00042708,120]
[399586293,1766525422338,-542.5135057,0.00042708,120]
[399586294,1766525422385,-500.0,0.00042708,120]
[399586295,1766525422431,-500.0,0.00042708,120]
[399586296,1766525422477,-515.56524504,0.00042708,120]
[399586297,1766525422523,-510.3975789,0.00042708,120]
[399586298,1766525422571,-500.0,0.00042708,120]
[399586299,1766525422617,-500.0,0.00042708,120]
[399586300,1766525422663,-500.0,0.00042708,120]
[399586301,1766525422708,-609.8112571,0.00042708,120]
[399586302,1766525422754,-545.25824971,0.00042708,120]
[399586303,1766525422807,-506.820048,0.00042708,120]
[399586304,1766525422855,-524.96080032,0.00042708,120]
[399586305,1766525422900,-222.35693019,0.00042708,120]
[399586306,1766525422944,-500.0,0.00042708,120]
[399586307,1766525422990,-548.33,0.00042708,120]
[399586308,1766525423041,-500.0,0.00042708,120]
[399586309,1766525423097,-500.0,0.00042708,120]
[399586310,1766525423155,-500.0,0.00042708,120]
[399586311,1766525423209,-500.0,0.00042708,120]
[399586312,1766525423262,-500.0,0.00042708,120]
[399586313,1766525423313,-500.0,0.00042708,120]
[399586314,1766525423362,-500.0,0.00042708,120]
[399586315,1766525423409,-500.0,0.00042708,120]
[399586316,1766525423456,-500.0,0.00042708,120]
[399586317,1766525423501,-176.11436678,0.00042708,120]
[399586318,1766525423548,-500.0,0.00042708,120]
[399586319,1766525423594,-500.0,0.00042708,120]
[399586320,1766525423643,-556.70304727,0.00042708,120]
[399586321,1766525423692,-500.0,0.00042708,120]
[399586322,1766525423743,-500.0,0.00042708,120]
[399586323,1766525423792,-500.0,0.00042708,120]
[399586324,1766525423840,-500.0,0.00042708,120]
[399586325,1766525423886,-500.0,0.00042708,120]
[399586326,1766525423935,-500.0,0.00042708,120]
[399586327,1766525423988,-500.0,0.00042708,120]
[399586328,1766525424040,-567.08519639,0.00042708,120]
[399586329,1766525424093,-500.0,0.00042708,120]
[399586330,1766525424144,-479.85038001,0.00042708,120]
[399586331,1766525424198,-500.0,0.00042708,120]
[399586332,1766525424253,-500.0,0.00042708,120]
[399586333,1766525424306,-500.0,0.00042708,120]
[399586334,1766525424358,-500.0,0.00042708,120]
[399586335,1766525424405,-500.0,0.00042708,120]
[399586336,1766525424455,-478.52689726,0.00042708,120]
[399586337,1766525424503,-500.0,0.00042708,120]
[399586338,1766525424548,-500.0,0.00042708,120]
[399586339,1766525424596,-500.0,0.00042708,120]
[399586340,1766525424643,-500.0,0.00042708,120]
[399586341,1766525424951,-500.0,0.00042708,120]
[399586342,1766525425019,-500.0,0.00042708,120]
[399586343,1766525425072,-500.0,0.00042708,120]
[399586344,1766525425124,-500.0,0.00042708,120]
[399586345,1766525425176,-500.0,0.00042708,120]
[399586346,1766525425229,-500.0,0.00042708,120]
[399586347,1766525425281,-500.0,0.00042708,120]
[399586348,1766525425333,-500.0,0.00042708,120]
[399586349,1766525425387,-500.0,0.00042708,120]
[399586350,1766525425437,-500.0,0.00042708,120]
[399586351,1766525425486,-500.0,0.00042708,120]
[399586352,1766525425535,-500.0,0.00042708,120]
[399586353,1766525425583,-544.70238148,0.00042708,120]
[399586354,1766525425635,-500.0,0.00042708,120]
[399586355,1766525425684,-500.0,0.00042708,120]
[399586356,1766525425739,-500.0,0.00042708,120]
[399586357,1766525425792,-500.0,0.00042708,120]
[399586358,1766525425844,-500.0,0.00042708,120]
[399586359,1766525425893,-500.0,0.00042708,120]
[399586360,1766525425944,-500.0,0.00042708,120]
[399586361,1766525425991,-271.76218969,0.00042708,120]
[399586362,1766525426040,-500.0,0.00042708,120]
[399586363,1766525426089,-210.01146877,0.00042708,120]
[399586364,1766525426141,-500.0,0.00042708,120]
[399586365,1766525426193,-500.0,0.00042708,120]
[399586366,1766525426244,-500.0,0.00042708,120]
[399586367,1766525426296,-500.0,0.00042708,120]
[399586368,1766525426349,-314.09409115,0.00042708,120]
[399586369,1766525426398,-500.0,0.00042708,120]
[399586370,1766525426446,-500.0,0.00042708,120]
[399586371,1766525426493,-500.0,0.00042708,120]
[399586372,1766525426542,-500.0,0.00042708,120]
[399586373,1766525426590,-500.0,0.00042708,120]
[399586374,1766525426639,-500.0,0.00042708,120]
[399586375,1766525426685,-500.0,0.00042708,120]
[399586376,1766525426737,-596.00001402,0.00042708,120]
[399586377,1766525426786,-500.0,0.00042708,120]
[399586378,1766525426837,-500.0,0.00042708,120]
[399586379,1766525426887,-500.0,0.00042708,120]
[399586380,1766525426934,-500.0,0.00042708,120]
[399586381,1766525426982,-500.0,0.00042708,120]
[399586382,1766525427029,-500.0,0.00042708,120]
[399586383,1766525427079,-500.0,0.00042708,120]
[399586384,1766525427132,-364.1347604,0.00042708,120]
[399586385,1766525427182,-500.0,0.00042708,120]
[399586386,1766525427233,-500.0,0.00042708,120]
[399586387,1766525427282,-500.0,0.00042708,120]
[399586388,1766525427333,-500.0,0.00042708,120]
[399586389,1766525427383,-505.53722337,0.00042708,120]
[399586390,1766525427441,-500.0,0.00042708,120]
[399586391,1766525427493,-297.84260269,0.00042708,120]
[399586392,1766525427543,-500.0,0.00042708,120]
[399586393,1766525427594,-500.0,0.00042708,120]
[399586394,1766525427641,-500.0,0.00042708,120]
[399586395,1766525427688,-500.0,0.00042708,120]
[399586396,1766525427741,-500.0,0.00042708,120]
[399586397,1766525427788,-500.0,0.00042708,120]
[399586398,1766525427838,-500.0,0.00042708,120]
[399586399,1766525427884,-500.0,0.00042708,120]
[399586400,1766525427933,-500.0,0.00042708,120]
[399586401,1766525427980,-500.0,0.00042708,120]
[399586402,1766525428027,-500.0,0.00042708,120]
[399586403,1766525428076,-415.76630342,0.00042708,120]
[399586404,1766525428125,-500.0,0.00042708,120]
[399586405,1766525428175,-310.2935389,0.00042708,120]
[399586406,1766525428226,-494.42,0.00042708,120]
[399586407,1766525428272,-500.0,0.00042708,120]
[399586408,1766525428319,-500.0,0.00042708,120]
[399586409,1766525428385,-507.48624569,0.00042708,120]
[399586410,1766525428435,-500.0,0.00042708,120]
[399586411,1766525428486,-500.0,0.00042708,120]
[399586412,1766525428533,-500.0,0.00042708,120]
[399586413,1766525428580,-500.0,0.00042708,120]
[399586414,1766525428629,-500.0,0.00042708,120]
[399586415,1766525428682,-500.0,0.00042708,120]
[399586416,1766525428735,-500.0,0.00042708,120]
[399586417,1766525428783,-500.0,0.00042708,120]
[399586418,1766525428831,-500.0,0.00042708,120]
[399586419,1766525428876,-500.0,0.00042708,120]
[399586420,1766525428923,-500.0,0.00042708,120]
[399586421,1766525428970,-500.0,0.00042708,120]
[399586422,1766525429015,-531.97068616,0.00042708,120]
[399586423,1766525429073,-500.0,0.00042708,120]
[399586424,1766525429127,-500.0,0.00042708,120]
[399586425,1766525429184,-500.0,0.00042708,120]
[399586426,1766525429241,-500.0,0.00042708,120]
[399586427,1766525429294,-402.51080527,0.00042708,120]
[399586428,1766525429343,-500.0,0.00042708,120]
[399586429,1766525429392,-500.0,0.00042708,120]
[399586430,1766525429442,-500.0,0.00042708,120]
[399586431,1766525429492,-500.0,0.00042708,120]
[399586432,1766525429539,-500.0,0.00042708,120]
[399586433,1766525429585,-500.0,0.00042708,120]
[399586434,1766525429630,-500.0,0.00042708,120]
[399586435,1766525430073,-500.0,0.00042708,120]